fUST/lending_fUST_20260118
["ID","MTS","AMOUNT","RATE_DAILY","PERIOD"]
[402479198,1768684026589,246.47,0.00011601,2]
[402479199,1768684027000,277.28,0.00012015,2]
[402479200,1768684027405,308.09,0.00012429,2]
[402479201,1768684080081,162.59,1.998e-05,2]
[402479202,1768684080366,162.57,1.998e-05,2]
[402479203,1768684147279,2296.46,0.00027397,120]
[402479242,1768684231932,-608.0,0.00013272,2]
[402479244,1768684231941,-1200.0,0.00013272,2]
[402479246,1768684231950,-167.64470807,0.00013272,2]
[402479248,1768684231959,-500.0,0.00013273,2]
[402479250,1768684231969,-500.0,0.00013273,2]
[402479252,1768684231980,-500.0,0.00013273,2]
[402479254,1768684231989,-500.0,0.00013273,2]
[402479256,1768684231999,-186.59987911,0.00013273,2]
[402479258,1768684232008,-500.0,0.00013273,2]
[402479260,1768684232018,-999.298191,0.00013289,2]
[402479262,1768684232027,-300.0,0.00013673,2]
[402479264,1768684232036,-4648.07893086,0.00013673,2]
[402479265,1768684232045,-1000.0,0.00013699,2]
[402479266,1768684232055,-500.0,0.00013699,2]
[402479268,1768684232065,-500.0,0.00013699,2]
[402479270,1768684232075,-500.0,0.00013699,2]
[402479272,1768684232085,-500.0,0.00013699,2]
[402479274,1768684232094,-623.55526284,0.00013699,2]
[402479276,1768684232103,-40802.8412853,0.00013721,2]
[402479278,1768684232115,-74550.95203031,0.00013721,2]
[402479356,1768684238087,-884646.20668439,0.00013721,2]
[402479357,1768684238097,-241.95586083,0.00013816,2]
[402479358,1768684238107,-405.81670383,0.00013816,2]
[402479359,1768684238117,-500.0,0.00013816,2]
[402479360,1768684238127,-500.0,0.00013816,2]
[402479361,1768684238137,-500.0,0.00013816,2]
[402479362,1768684238147,-500.0,0.00013816,2]
[402479363,1768684238156,-500.0,0.00013816,2]
[402479364,1768684238166,-500.0,0.00013816,2]
[402479365,1768684238175,-500.0,0.00013816,2]
[402479366,1768684238185,-535.82899484,0.00013816,2]
[402479367,1768684238195,-465.72638475,0.00013816,2]
[402479368,1768684238205,-500.0,0.00013816,2]
[402479369,1768684238214,-500.0,0.00013816,2]
[402479370,1768684238224,-500.0,0.00013816,2]
[402479371,1768684238234,-500.0,0.00013816,2]
[402479372,1768684238248,-500.0,0.00013816,2]
[402479373,1768684238258,-467.47456948,0.00013816,2]
[402479374,1768684238269,-500.0,0.00013816,2]
[402479375,1768684238279,-500.0,0.00013816,2]
[402479376,1768684238289,-500.0,0.00013821,2]
[402479377,1768684238298,-1000.0,0.00013821,2]
[402479378,1768684238308,-13235.85781874,0.00014,2]
[402479379,1768684238318,-100000.0,0.00014006,2]
[402479380,1768684238328,-157.03592371,0.00014096,2]
[402479381,1768684238338,-600.0,0.00014221,2]
[402479382,1768684238348,-1000.0,0.00014247,2]
[402479383,1768684238357,-206.13735223,0.00014247,2]
[402479384,1768684238367,-1003.66607308,0.00014247,2]
[402479385,1768684238376,-1000.0,0.00014247,2]
[402479386,1768684238386,-1000.0,0.00014368,2]
[402479387,1768684238395,-161.9913003,0.00014532,2]
[402479388,1768684238405,-900.0,0.00014768,2]
[402479389,1768684238414,-1000.0,0.00014795,2]
[402479390,1768684238425,-1500.0,0.00014795,2]
[402479391,1768684238434,-260.44885467,0.00014989,2]
[402479392,1768684238444,-351.16560195,0.00014989,2]
[402479393,1768684238454,-302.674197,0.00015068,2]
[402479394,1768684238464,-30000.0,0.00015145,2]
[402479395,1768684238473,-2150.738,0.00015145,2]
[402479396,1768684238482,-1957.856,0.00015145,2]
[402479397,1768684238492,-300.73,0.00015145,2]
[402479398,1768684238501,-758.75,0.00015188,2]
[402479399,1768684238511,-2030.296672,0.000152,2]
[402479400,1768684238520,-269.76111784,0.00015216,2]
[402479401,1768684238530,-2105.41764886,0.00015255,2]
[402479402,1768684238539,-197.82075552,0.00015272,2]
[402479403,1768684238549,-445.202766,0.00015288,2]
[402479404,1768684238558,-151.0,0.00015288,2]
[402479405,1768684238568,-250.0,0.00015288,2]
[402479406,1768684238578,-500.0,0.00015288,2]
[402479407,1768684238587,-151.0,0.00015288,2]
[402479408,1768684238597,-250.0,0.00015288,2]
[402479409,1768684238606,-500.0,0.00015288,2]
[402479410,1768684238616,-201.18700456,0.00015288,2]
[402479411,1768684238627,-250.0,0.00015288,2]
[402479412,1768684238636,-500.0,0.00015288,2]
[402479413,1768684238646,-2000.0,0.00015288,2]
[402479414,1768684238655,-250.0,0.00015288,2]
[402479415,1768684238664,-500.0,0.00015288,2]
[402479416,1768684238674,-2000.0,0.00015288,2]
[402479417,1768684238682,-500.0,0.00015288,2]
[402479418,1768684238692,-2000.0,0.00015288,2]
[402479419,1768684238701,-500.0,0.00015288,2]
[402479420,1768684238715,-2000.0,0.00015288,2]
[402479421,1768684238727,-500.0,0.00015288,2]
[402479422,1768684238736,-151.0,0.00015288,2]
[402479423,1768684238746,-500.0,0.00015288,2]
[402479424,1768684238756,-2000.0,0.00015288,2]
[402479425,1768684238765,-151.0,0.00015288,2]
[402479426,1768684238775,-500.0,0.00015288,2]
[402479427,1768684238785,-2000.0,0.00015288,2]
[402479428,1768684238794,-500.0,0.00015288,2]
[402479429,1768684238804,-2000.0,0.00015288,2]
[402479430,1768684238814,-500.0,0.00015288,2]
[402479431,1768684238823,-2000.0,0.00015288,2]
[402479432,1768684238833,-500.0,0.00015288,2]
[402479433,1768684238842,-2000.0,0.00015288,2]
[402479434,1768684238852,-500.0,0.00015288,2]
[402479435,1768684238861,-2000.0,0.00015288,2]
[402479436,1768684238870,-2000.0,0.00015288,2]
[402479437,1768684238879,-500.0,0.00015288,2]
[402479438,1768684238888,-2000.0,0.00015288,2]
[402479439,1768684238898,-2000.0,0.00015288,2]
[402479440,1768684238908,-500.0,0.00015288,2]
[402479441,1768684238918,-2000.0,0.00015288,2]
[402479442,1768684238928,-500.0,0.00015288,2]
[402479443,1768684238938,-2000.0,0.00015288,2]
[402479444,1768684238948,-500.0,0.00015288,2]
[402479445,1768684238958,-151.0,0.00015288,2]
[402479446,1768684238968,-2000.0,0.00015288,2]
[402479447,1768684238977,-500.0,0.00015288,2]
[402479448,1768684238987,-343.03408281,0.00015288,2]
[402479449,1768684238996,-162.380719,0.00015288,2]
[402479450,1768684239007,-168.3888056,0.00015288,2]
[402479451,1768684239017,-174.61919141,0.00015288,2]
[402479452,1768684239026,-181.08010149,0.00015288,2]
[402479453,1768684239035,-187.78006525,0.00015288,2]
[402479454,1768684239046,-194.72792766,0.00015288,2]
[402479455,1768684239056,-201.93286099,0.00015288,2]
[402479456,1768684239066,-209.40437684,0.00015288,2]
[402479457,1768684239075,-217.15233878,0.00015288,2]
[402479458,1768684239084,-225.18697532,0.00015288,2]
[402479459,1768684239093,-233.51889341,0.00015288,2]
[402479460,1768684239103,-242.15909246,0.00015288,2]
[402479461,1768684239112,-251.11897888,0.00015288,2]
[402479462,1768684239122,-260.4103811,0.00015288,2]
[402479463,1768684239132,-270.0455652,0.00015288,2]
[402479464,1768684239141,-280.03725112,0.00015288,2]
[402479465,1768684239151,-290.39862941,0.00015288,2]
[402479466,1768684239162,-301.1433787,0.00015288,2]
[402479467,1768684239172,-603.86573033,0.00015316,2]
[402479468,1768684239184,-2000.0,0.00015342,2]
[402479469,1768684239194,-256.42997,0.00015357,2]
[402479470,1768684239206,-168.0,0.00015393,2]
[402479471,1768684239217,-168.0,0.00015395,2]
[402479472,1768684239228,-168.0,0.00015422,2]
[402479473,1768684239243,-157.0359237,0.00015459,2]
[402479474,1768684239254,-269.76111781,0.00015497,2]
[402479475,1768684239264,-1041.66666667,0.00015642,2]
[402479476,1768684239274,-168.0,0.00015677,2]
[402479477,1768684239284,-31110.0,0.00015693,2]
[402479478,1768684239294,-2230.315306,0.00015693,2]
[402479479,1768684239304,-311.85701,0.00015693,2]
[402479480,1768684239313,-269.76111781,0.00015777,2]
[402479481,1768684239323,-811.0,0.00015816,2]
[402479482,1768684239334,-306.0,0.00015826,2]
[402479483,1768684239344,-461.67526834,0.00015836,2]
[402479484,1768684239354,-151.0,0.00015836,2]
[402479485,1768684239363,-1504.21199472,0.0001589,2]
[402479486,1768684239373,-704.00140838,0.00015929,2]
[402479487,1768684239383,-2816.00563353,0.00015929,2]
[402479488,1768684239392,-6329.67666276,0.00015929,2]
[402479489,1768684239402,-466.17585447,0.00015929,2]
[402479490,1768684239411,-1864.70341789,0.00015929,2]
[402479491,1768684239420,-4195.58269025,0.00015929,2]
[402479492,1768684239430,-168.0,0.0001593,2]
[402479493,1768684239440,-3000.0,0.00016,2]
[402479494,1768684239449,-3000.0,0.0001601,2]
[402479495,1768684239459,-3000.0,0.0001602,2]
[402479496,1768684239468,-500.0,0.00016027,3]
[402479497,1768684239478,-3000.0,0.0001603,2]
[402479498,1768684239487,-3000.0,0.0001604,2]
[402479499,1768684239498,-3000.0,0.0001605,2]
[402479500,1768684239508,-269.76111781,0.00016058,2]
[402479501,1768684239520,-3000.0,0.0001606,2]
[402479502,1768684239530,-3000.0,0.0001607,2]
[402479503,1768684239539,-3000.0,0.0001608,2]
[402479504,1768684239548,-3000.0,0.0001609,2]
[402479505,1768684239558,-4990.866111,0.000161,2]
[402479506,1768684239568,-7458.81367156,0.00016142,2]
[402479507,1768684239577,-500.0,0.00016164,3]
[402479508,1768684239587,-811.0,0.00016187,2]
[402479509,1768684239596,-3432.82908099,0.00016241,2]
[402479510,1768684239606,-2312.83697232,0.00016241,2]
[402479511,1768684239615,-1094.9599349,0.00016252,2]
[402479512,1768684239624,-76610.1608388,0.00016252,2]
[402479513,1768684239634,-176.6430245,0.00016252,2]
[402479514,1768684239643,-200.0,0.00016301,3]
[402479515,1768684239653,-200.0,0.00016301,3]
[402479516,1768684239662,-500.0,0.00016301,3]
[402479517,1768684239672,-200.0,0.00016301,3]
[402479518,1768684239681,-200.0,0.00016301,3]
[402479519,1768684239690,-200.0,0.00016301,3]
[402479520,1768684239700,-269.76111781,0.00016338,2]
[402479521,1768684239712,-13205.58024209,0.00016338,2]
[402479522,1768684239721,-10000.0,0.00016338,2]
[402479523,1768684239731,-1194.0,0.00016377,2]
[402479524,1768684239740,-478.75725327,0.00016384,2]
[402479525,1768684239751,-1194.0,0.00016393,2]
[402479526,1768684239760,-811.0,0.00016411,2]
[402479527,1768684239770,-3000.0,0.00016428,2]
[402479528,1768684239780,-180.95,0.00016437,2]
[402479529,1768684239791,-500.0,0.00016438,3]
[402479530,1768684239800,-375.74267637,0.00016438,3]
[402479531,1768684239810,-500.0,0.00016438,3]
[402479532,1768684239819,-500.0,0.00016438,3]
[402479533,1768684239829,-500.0,0.00016438,3]
[402479534,1768684239839,-500.0,0.00016438,3]
[402479535,1768684239849,-500.0,0.00016438,3]
[402479536,1768684239860,-500.0,0.00016438,3]
[402479537,1768684239870,-500.0,0.00016438,3]
[402479538,1768684239879,-500.0,0.00016438,3]
[402479539,1768684239888,-500.0,0.00016438,3]
[402479540,1768684239898,-500.0,0.00016438,3]
[402479541,1768684239907,-500.0,0.00016438,3]
[402479542,1768684239917,-500.0,0.00016438,3]
[402479543,1768684239926,-500.0,0.00016438,3]
[402479544,1768684239934,-500.0,0.00016438,3]
[402479545,1768684239943,-500.0,0.00016438,3]
[402479546,1768684239952,-500.0,0.00016438,3]
[402479547,1768684239962,-161.63217718,0.00016438,3]
[402479548,1768684239971,-500.0,0.00016438,3]
[402479550,1768684239981,-695.27,0.00016438,3]
[402479552,1768684239991,-500.0,0.00016438,3]
[402479553,1768684240001,-500.0,0.00016438,3]
[402479554,1768684240010,-500.0,0.00016438,3]
[402479555,1768684240020,-500.0,0.00016438,3]
[402479557,1768684240029,-500.0,0.00016438,3]
[402479559,1768684240038,-893.97,0.00016438,3]
[402479560,1768684240048,-590.40738298,0.00016438,3]
[402479562,1768684240057,-500.0,0.00016438,3]
[402479564,1768684240067,-500.0,0.00016438,3]
[402479566,1768684240076,-500.0,0.00016438,3]
[402479568,1768684240085,-500.0,0.00016438,3]
[402479570,1768684240094,-907.15,0.00016438,3]
[402479572,1768684240104,-500.0,0.00016438,3]
[402479574,1768684240113,-500.0,0.00016438,3]
[402479576,1768684240123,-500.0,0.00016438,3]
[402479577,1768684240132,-500.0,0.00016438,2]
[402479578,1768684240142,-500.0,0.00016438,3]
[402479579,1768684240151,-500.0,0.00016438,3]
[402479581,1768684240161,-500.0,0.00016438,3]
[402479583,1768684240170,-1000.0,0.00016438,2]
[402479585,1768684240179,-526.17897158,0.00016438,3]
[402479587,1768684240188,-500.0,0.00016438,3]
[402479589,1768684240197,-246.0,0.00016438,3]
[402479591,1768684240207,-500.0,0.00016438,3]
[402479593,1768684240216,-500.0,0.00016438,3]
[402479595,1768684240226,-500.0,0.00016438,3]
[402479600,1768684240392,-202.85755538,0.00016438,3]
[402479602,1768684240416,-500.0,0.00016438,3]
[402479603,1768684240425,-614.98,0.00016438,3]
[402479604,1768684240434,-500.0,0.00016438,3]
[402479605,1768684240444,-500.0,0.00016438,3]
[402479607,1768684240453,-811.02,0.00016438,3]
[402479609,1768684240463,-500.0,0.00016438,3]
[402479611,1768684240472,-500.0,0.00016438,3]
[402479613,1768684240481,-755.61,0.00016438,3]
[402479615,1768684240490,-500.0,0.00016438,3]
[402479617,1768684240499,-500.0,0.00016438,3]
[402479619,1768684240508,-500.0,0.00016438,3]
[402479621,1768684240518,-500.0,0.00016438,3]
[402479623,1768684240528,-500.0,0.00016438,3]
[402479625,1768684240537,-500.0,0.00016438,3]
[402479627,1768684240546,-500.0,0.00016438,3]
[402479629,1768684240556,-500.0,0.00016438,3]
[402479631,1768684240566,-500.0,0.00016438,3]
[402479633,1768684240575,-500.0,0.00016438,3]
[402479635,1768684240584,-500.0,0.00016438,3]
[402479637,1768684240593,-500.0,0.00016438,3]
[402479639,1768684240602,-500.0,0.00016438,3]
[402479641,1768684240611,-500.0,0.00016438,3]
[402479643,1768684240620,-505.83,0.00016438,3]
[402479645,1768684240630,-500.0,0.00016438,3]
[402479647,1768684240639,-500.0,0.00016438,3]
[402479649,1768684240648,-500.0,0.00016438,3]
[402479651,1768684240657,-1380.33,0.00016438,3]
[402479653,1768684240666,-500.0,0.00016438,3]
[402479654,1768684240675,-500.0,0.00016438,3]
[402479657,1768684240685,-500.0,0.00016438,3]
[402479659,1768684240694,-554.19378487,0.00016438,3]
[402479661,1768684240703,-500.0,0.00016438,3]
[402479662,1768684240714,-500.0,0.00016438,3]
[402479665,1768684240724,-500.0,0.00016438,3]
[402479666,1768684240733,-500.0,0.00016438,3]
[402479668,1768684240743,-1106.79,0.00016438,3]
[402479671,1768684240752,-500.0,0.00016438,3]
[402479672,1768684240762,-533.25,0.00016438,3]
[402479675,1768684240771,-500.0,0.00016438,3]
[402479677,1768684240782,-500.0,0.00016438,3]
[402479678,1768684240792,-500.0,0.00016438,3]
[402479681,1768684240802,-637.21,0.00016438,3]
[402479683,1768684240811,-500.0,0.00016438,3]
[402479684,1768684240821,-500.0,0.00016438,3]
[402479687,1768684240831,-500.0,0.00016438,3]
[402479688,1768684240841,-642.42,0.00016438,3]
[402479690,1768684240850,-500.0,0.00016438,3]
[402479691,1768684240859,-704.85,0.00016438,3]
[402479693,1768684240870,-500.0,0.00016438,3]
[402479695,1768684240880,-500.0,0.00016438,3]
[402479697,1768684240889,-500.0,0.00016438,3]
[402479699,1768684240898,-500.0,0.00016438,3]
[402479701,1768684240908,-500.0,0.00016438,3]
[402479703,1768684240917,-500.0,0.00016438,3]
[402479705,1768684240926,-801.52,0.00016438,3]
[402479707,1768684240936,-500.0,0.00016438,3]
[402479709,1768684240945,-500.0,0.00016438,3]
[402479712,1768684240954,-500.0,0.00016438,3]
[402479714,1768684240966,-500.0,0.00016438,3]
[402479716,1768684240976,-527.42325342,0.00016438,3]
[402479717,1768684240986,-500.0,0.00016438,3]
[402479719,1768684240999,-500.0,0.00016438,3]
[402479722,1768684241009,-500.0,0.00016438,3]
[402479724,1768684241019,-500.0,0.00016438,3]
[402479726,1768684241030,-553.03,0.00016438,3]
[402479727,1768684241039,-500.0,0.00016438,3]
[402479729,1768684241050,-552.35,0.00016438,3]
[402479731,1768684241060,-500.0,0.00016438,3]
[402479733,1768684241069,-500.0,0.00016438,3]
[402479736,1768684241080,-225.94247433,0.00016438,3]
[402479738,1768684241090,-597.25,0.00016438,3]
[402479740,1768684241099,-1219.79,0.00016438,3]
[402479742,1768684241108,-417.85698666,0.00016438,3]
[402479744,1768684241118,-504.02216576,0.00016438,3]
[402479746,1768684241127,-604.07,0.00016438,3]
[402479748,1768684241137,-500.0,0.00016438,3]
[402479750,1768684241146,-500.0,0.00016438,3]
[402479752,1768684241155,-500.41163079,0.00016438,3]
[402479754,1768684241165,-576.72,0.00016438,3]
[402479756,1768684241175,-500.0,0.00016438,3]
[402479758,1768684241184,-444.83809808,0.00016438,3]
[402479760,1768684241194,-500.0,0.00016438,3]
[402479762,1768684241203,-500.0,0.00016438,3]
[402479763,1768684241212,-500.0,0.00016438,3]
[402479766,1768684241222,-500.0,0.00016438,3]
[402479767,1768684241232,-805.71,0.00016438,3]
[402479770,1768684241242,-500.0,0.00016438,3]
[402479771,1768684241252,-643.98345217,0.00016438,3]
[402479773,1768684241261,-264.29964932,0.00016438,3]
[402479775,1768684241271,-500.0,0.00016438,3]
[402479777,1768684241281,-500.0,0.00016438,3]
[402479779,1768684241290,-1123.61,0.00016438,3]
[402479781,1768684241300,-834.54,0.00016438,3]
[402479783,1768684241310,-500.0,0.00016438,3]
[402479785,1768684241319,-500.0,0.00016438,3]
[402479787,1768684241328,-566.78,0.00016438,3]
[402479789,1768684241338,-500.0,0.00016438,3]
[402479791,1768684241348,-500.0,0.00016438,3]
[402479794,1768684241358,-500.0,0.00016438,3]
[402479796,1768684241368,-500.0,0.00016438,3]
[402479797,1768684241378,-1041.46,0.00016438,3]
[402479800,1768684241388,-544.53494198,0.00016438,3]
[402479801,1768684241398,-500.0,0.00016438,3]
[402479803,1768684241407,-500.0,0.00016438,3]
[402479806,1768684241417,-500.0,0.00016438,3]
[402479808,1768684241427,-500.0,0.00016438,3]
[402479809,1768684241437,-1078.53,0.00016438,3]
[402479812,1768684241447,-500.0,0.00016438,3]
[402479813,1768684241456,-500.0,0.00016438,3]
[402479815,1768684241467,-500.0,0.00016438,3]
[402479817,1768684241476,-500.0,0.00016438,3]
[402479820,1768684241486,-500.0,0.00016438,3]
[402479822,1768684241496,-1440.8,0.00016438,3]
[402479823,1768684241505,-500.0,0.00016438,3]
[402479826,1768684241516,-1112.25,0.00016438,3]
[402479827,1768684241526,-500.0,0.00016438,3]
[402479830,1768684241536,-500.0,0.00016438,3]
[402479832,1768684241545,-500.0,0.00016438,3]
[402479833,1768684241556,-500.0,0.00016438,3]
[402479836,1768684241566,-500.0,0.00016438,3]
[402479838,1768684241576,-500.0,0.00016438,3]
[402479840,1768684241586,-500.0,0.00016438,3]
[402479842,1768684241595,-500.0,0.00016438,3]
[402479844,1768684241604,-469.18172049,0.00016438,3]
[402479846,1768684241613,-500.0,0.00016438,3]
[402479848,1768684241623,-500.0,0.00016438,3]
[402479850,1768684241632,-500.0,0.00016438,3]
[402479852,1768684241641,-500.0,0.00016438,3]
[402479854,1768684241654,-500.0,0.00016438,3]
[402479856,1768684241663,-500.0,0.00016438,3]
[402479858,1768684241671,-1100.67,0.00016438,3]
[402479860,1768684241681,-500.0,0.00016438,3]
[402479862,1768684241690,-151.0,0.00016438,2]
[402479864,1768684241699,-500.0,0.00016438,3]
[402479866,1768684241710,-500.0,0.00016438,3]
[402479868,1768684241722,-968.96,0.00016438,3]
[402479870,1768684241732,-817.35,0.00016438,3]
[402479872,1768684241741,-553.08,0.00016438,3]
[402479874,1768684241751,-500.0,0.00016438,3]
[402479876,1768684241761,-500.0,0.00016438,3]
[402479877,1768684241771,-509.99937096,0.00016438,3]
[402479879,1768684241781,-809.91,0.00016438,3]
[402479882,1768684241792,-500.0,0.00016438,3]
[402479884,1768684241802,-756.02,0.00016438,3]
[402479885,1768684241811,-325.21716664,0.00016438,3]
[402479887,1768684241820,-500.0,0.00016438,3]
[402479889,1768684241829,-500.0,0.00016438,3]
[402479891,1768684241839,-500.0,0.00016438,3]
[402479893,1768684241848,-868.83,0.00016438,3]
[402479895,1768684241859,-969.72,0.00016438,3]
[402479897,1768684241869,-500.0,0.00016438,3]
[402479899,1768684241879,-500.0,0.00016438,3]
[402479902,1768684241890,-500.0,0.00016438,2]
[402479904,1768684241901,-1378.03,0.00016438,3]
[402479906,1768684241911,-500.0,0.00016438,3]
[402479907,1768684241920,-806.24,0.00016438,3]
[402479910,1768684241930,-505.85783189,0.00016438,3]
[402479912,1768684241940,-500.0,0.00016438,3]
[402479914,1768684241949,-500.0,0.00016438,3]
[402479915,1768684241959,-500.0,0.00016438,3]
[402479917,1768684241970,-500.0,0.00016438,3]
[402479920,1768684241980,-500.0,0.00016438,3]
[402479921,1768684241990,-501.8453365,0.00016438,3]
[402479924,1768684242000,-1642.54,0.00016438,3]
[402479925,1768684242010,-500.0,0.00016438,3]
[402479928,1768684242020,-500.0,0.00016438,3]
[402479929,1768684242029,-500.0,0.00016438,3]
[402479932,1768684242039,-795.63,0.00016438,3]
[402479933,1768684242048,-500.0,0.00016438,3]
[402479935,1768684242057,-500.0,0.00016438,3]
[402479938,1768684242067,-478.32257424,0.00016438,3]
[402479939,1768684242076,-641.52,0.00016438,3]
[402479941,1768684242085,-877.66,0.00016438,3]
[402479944,1768684242096,-500.0,0.00016438,3]
[402479946,1768684242106,-500.0,0.00016438,3]
[402479948,1768684242115,-501.58858315,0.00016438,3]
[402479950,1768684242125,-500.0,0.00016438,3]
[402479952,1768684242135,-500.0,0.00016438,3]
[402479954,1768684242144,-500.0,0.00016438,3]
[402479955,1768684242152,-500.0,0.00016438,3]
[402479958,1768684242163,-1358.52,0.00016438,3]
[402479960,1768684242172,-2043.56,0.00016438,3]
[402479961,1768684242181,-500.0,0.00016438,3]
[402479964,1768684242191,-863.75,0.00016438,3]
[402479965,1768684242200,-500.0,0.00016438,3]
[402479967,1768684242210,-500.0,0.00016438,3]
[402479969,1768684242219,-1182.27,0.00016438,3]
[402479971,1768684242229,-500.0,0.00016438,2]
[402479973,1768684242239,-810.43,0.00016438,3]
[402479975,1768684242248,-500.0,0.00016438,3]
[402479977,1768684242258,-500.0,0.00016438,3]
[402479980,1768684242267,-500.0,0.00016438,3]
[402479981,1768684242277,-656.03,0.00016438,3]
[402479984,1768684242287,-500.0,0.00016438,3]
[402479986,1768684242297,-709.5,0.00016438,3]
[402479988,1768684242307,-500.0,0.00016438,3]
[402479990,1768684242316,-500.0,0.00016438,3]
[402479992,1768684242325,-500.0,0.00016438,3]
[402479994,1768684242335,-500.0,0.00016438,3]
[402479996,1768684242344,-500.0,0.00016438,3]
[402479998,1768684242353,-500.0,0.00016438,3]
[402480000,1768684242363,-500.0,0.00016438,3]
[402480002,1768684242372,-500.0,0.00016438,3]
[402480004,1768684242381,-500.0,0.00016438,3]
[402480006,1768684242391,-1043.91,0.00016438,3]
[402480008,1768684242400,-500.0,0.00016438,3]
[402480009,1768684242409,-500.0,0.00016438,3]
[402480012,1768684242418,-883.27,0.00016438,3]
[402480013,1768684242428,-500.0,0.00016438,3]
[402480016,1768684242437,-1450.03,0.00016438,3]
[402480017,1768684242446,-500.0,0.00016438,3]
[402480020,1768684242456,-754.07,0.00016438,3]
[402480021,1768684242465,-151.0,0.00016438,2]
[402480024,1768684242475,-500.0,0.00016438,3]
[402480025,1768684242484,-500.0,0.00016438,3]
[402480027,1768684242493,-500.0,0.00016438,3]
[402480029,1768684242502,-500.0,0.00016438,3]
[402480032,1768684242512,-500.0,0.00016438,3]
[402480033,1768684242521,-500.0,0.00016438,3]
[402480036,1768684242531,-500.0,0.00016438,3]
[402480038,1768684242540,-500.0,0.00016438,3]
[402480040,1768684242549,-946.73,0.00016438,3]
[402480042,1768684242558,-500.0,0.00016438,3]
[402480046,1768684242567,-500.0,0.00016438,3]
[402480049,1768684242576,-500.0,0.00016438,3]
[402480052,1768684242586,-500.0,0.00016438,3]
[402480055,1768684242595,-982.35,0.00016438,3]
[402480057,1768684242604,-500.0,0.00016438,3]
[402480060,1768684242614,-500.0,0.00016438,3]
[402480064,1768684242623,-500.0,0.00016438,3]
[402480065,1768684242632,-500.0,0.00016438,3]
[402480067,1768684242642,-500.0,0.00016438,3]
[402480070,1768684242651,-629.95,0.00016438,3]
[402480072,1768684242661,-500.0,0.00016438,3]
[402480074,1768684242670,-500.0,0.00016438,3]
[402480076,1768684242679,-500.0,0.00016438,3]
[402480078,1768684242689,-1029.2,0.00016438,3]
[402480080,1768684242698,-781.29,0.00016438,3]
[402480082,1768684242708,-1037.36,0.00016438,3]
[402480114,1768684242991,-500.0,0.00016438,3]
[402480117,1768684243016,-613.24737358,0.00016438,3]
[402480119,1768684243025,-500.0,0.00016438,3]
[402480121,1768684243034,-500.0,0.00016438,3]
[402480123,1768684243043,-626.96,0.00016438,3]
[402480125,1768684243052,-500.0,0.00016438,3]
[402480128,1768684243062,-780.86,0.00016438,3]
[402480129,1768684243071,-500.0,0.00016438,3]
[402480132,1768684243081,-479.17924292,0.00016438,2]
[402480133,1768684243091,-500.0,0.00016438,3]
[402480136,1768684243101,-500.0,0.00016438,3]
[402480138,1768684243110,-500.0,0.00016438,3]
[402480140,1768684243120,-570.16,0.00016438,3]
[402480142,1768684243130,-500.0,0.00016438,3]